Workbook

Sheet анализ
A1: Информация о перечислении поступлений
A2: в бюджеты бюджетной системы Российской Федерации
A3: на территории Курганской области с казначейского счета для осуществления и отражения операций по учету и распределению поступлений
A4: на 1 июля 2022 года
A5: Показатели | B5: на 1 июля 2022 года | D5: на 1 июля 2021 года | F5: Изменение
B6: Сумма, млн. руб. | C6: Уд. вес , % | D6: Сумма, млн. руб. | E6: Уд. вес , % | F6: Абсолютное (+,-), млн. руб. | G6: Относи-тельное, %
A7: 1 | B7: 2 | C7: 3 | D7: 4 | E7: 5 | F7: 6 | G7: 7
A8: Федеральный бюджет | B8: 8190.3 | C8: 1 | D8: 7455.4 | E8: 1 | F8: =B8-D8 -> 734.9 | G8: =F8/D8 -> 0.09857284653
A9: Налог на прибыль | B9: 306.4 | C9: =B9/B$8 -> 0.03741010708 | D9: 309.5 | E9: =D9/D$8 -> 0.04151353381 | F9: -3.1 | G9: -0.01001615509
A10: Налог на доходы физических лиц | B10: 40.3 | C10: =B10/B$8 -> 0.004920454684 | D10: 12.6 | E10: 0.001 | F10: 27.7 | G10: 2.198412698
A11: Налог на добавленную стоимость | B11: 6804.5 | C11: 0.832 | D11: 6456 | E11: =D11/D$8 -> 0.8659495131 | F11: 348.5 | G11: 0.05398079306
A12: Государственная пошлина | B12: 148.9 | C12: 0.01818004225 | D12: 175.6 | E12: 0.02355339754 | F12: -26.7 | G12: -0.1520501139
A13: Платежи при пользовании природными ресурсами | B13: 165.8 | C13: 0.02024345873 | D13: 134.4 | E13: 0.01802720176 | F13: 31.4 | G13: 0.2336309524
A14: Доходы от оказания платных услуг и компенсации затрат государства | B14: 150.8 | C14: 0.01841202398 | D14: 137.8 | E14: 0.01848324704 | F14: 13 | G14: 0.09433962264
A15: Доходы от продажи материальных и нематериальных активов | B15: 33.2 | C15: 0.004053575571 | D15: 34.6 | E15: 0.004640931405 | F15: -1.4 | G15: -0.04046242775
A16: Административные платежи и сборы | B16: 73.4 | C16: 0.00896182069 | D16: 69.2 | E16: 0.009281862811 | F16: 4.2 | G16: 0.06069364162
A17: Штрафы, санкции, возмещение ущерба | B17: 81.9 | C17: 0.009999633713 | D17: 85.3 | E17: 0.01144137135 | F17: -3.4 | G17: -0.03985932005
A18: Безвозмездные поступления | B18: 371.3 | C18: 0.04533411475 | D18: 1.9 | E18: 0.001 | F18: 369.4 | G18: 194.4210526
A19: Прочие доходы | B19: 13.8 | C19: 0.001684919966 | D19: 38.5 | E19: 0.005164042171 | F19: -24.7 | G19: -0.6415584416
A20: Областной бюджет | B20: 21932.3 | C20: 1 | D20: 19601.1 | E20: 1 | F20: 2331.2 | G20: 0.1189321007
A21: Налог на прибыль | B21: 3113.1 | C21: =B21/B$20 -> 0.1419413377 | D21: 2673.5 | E21: =D21/D$20 -> 0.1363954064 | F21: 439.6 | G21: 0.1644286516
A22: Налог на доходы физических лиц | B22: 3770.6 | C22: 0.1719199537 | D22: 3612.1 | E22: =D22/D$20 -> 0.1842804741 | F22: 158.5 | G22: 0.04388029124
A23: Акцизы | B23: 3031 | C23: 0.1381980002 | D23: 2828.2 | E23: 0.1442878206 | F23: 202.8 | G23: 0.07170638569
A24: Налоги на совокупный доход | B24: 1179.8 | C24: 0.05379280787 | D24: 889.1 | E24: 0.0453596992 | F24: 290.7 | G24: 0.326959847
A25: Налог на имущество организаций | B25: 1317.3 | C25: 0.06006210019 | D25: 1081.1 | E25: 0.05515506783 | F25: 236.2 | G25: 0.2184811766
A26: Безвозмездные поступления | B26: 8665.1 | C26: 0.3950839629 | D26: 7948.1 | E26: 0.4054925489 | F26: 717 | G26: 0.09021023893
A27: Прочие поступления | B27: 855.4 | C27: 0.03900183747 | D27: 569 | E27: 0.031 | F27: 286.4 | G27: 0.5033391916
A28: Бюджеты муниципальных образований | B28: 12706.7 | C28: 1 | D28: 12028.9 | E28: 1 | F28: 677.8 | G28: 0.05634762946
A29: Налог на доходы физических лиц | B29: 1694.8 | C29: =B29/B$28 -> 0.1333784539 | D29: 1621.5 | E29: =D29/D$28 -> 0.1348003558 | F29: 73.3 | G29: 0.04520505705
A30: Акцизы | B30: 158.4 | C30: 0.01246586447 | D30: 132.7 | E30: 0.01103176517 | F30: 25.7 | G30: 0.1936699322
A31: Налоги на совокупный доход | B31: 202 | C31: 0.01589712514 | D31: 193 | E31: 0.01604469237 | F31: 9 | G31: 0.04663212435
A32: Налог на имущество физических лиц | B32: 21.5 | C32: 0.001692020745 | D32: 22 | E32: 0.001828928663 | F32: -0.5 | G32: -0.02272727273
A33: Земельный налог | B33: 163.2 | C33: 0.01284361793 | D33: 178.1 | E33: 0.01480600886 | F33: -14.9 | G33: -0.08366086468
A34: Безвозмездные поступления | B34: 9921.5 | C34: 0.7808085498 | D34: 9273.4 | E34: 0.7709266849 | F34: 648.1 | G34: 0.06988806694
A35: Прочие поступления | B35: 545.3 | C35: 0.04291436801 | D35: 608.2 | E35: 0.05 | F35: -62.9 | G35: -0.1034199277
A36: Пенсионный фонд | B36: 8352.9 | C36: 1 | D36: 8107.2 | E36: 1 | F36: 245.7 | G36: 0.03030639432
A37: Страховые взносы | B37: 8335.2 | C37: =B37/B36 -> 0.9978809755 | D37: 8089.6 | E37: =D37/D36 -> 0.9978290902 | F37: =B37-D37 -> 245.6 | G37: 0.03035996835
A38: Прочие поступления | B38: 17.7 | C38: =B38/B37 -> 0.002123524331 | D38: 17.6 | E38: 0.002 | F38: =B38-D38 -> 0.1 | G38: 0.005681818182
A39: Фонд социального страхования | B39: 1238.9 | C39: 1 | D39: 1189.6 | E39: 1 | F39: 49.3 | G39: 0.04144250168
A40: Страховые взносы | B40: 1228.8 | C40: =B40/B39 -> 0.9918476067 | D40: 1187.6 | E40: 0.998 | F40: =B40-D40 -> 41.2 | G40: 0.03469181543
A41: Прочие поступления | B41: 10.1 | C41: =B41/B40 -> 0.008219401042 | D41: 2 | E41: =E39-E40 -> 0.002 | F41: =B41-D41 -> 8.1 | G41: 4.05
A42: Федеральный фонд обязательного медицинского страхования | B42: 4680.5 | C42: 1 | D42: 4525.4 | E42: 1 | F42: 155.1 | G42: 0.03427321342
A43: Страховые взносы | B43: 4670 | C43: =B43/B42 -> 0.9977566499 | D43: 4516 | E43: =D43/D42 -> 0.9979228356 | F43: 154 | G43: 0.03410097431
A44: Налог на профессиональный доход | B44: 10.5 | C44: =B44/B42 -> 0.002243350069 | D44: 4.4 | E44: =D44/D42 -> 0.0009722897423 | F44: 6.1 | G44: 1.386363636
A45: Прочие поступления | B45: 0 | C45: =B45/B42 -> 0 | D45: 5 | E45: =D45/D42 -> 0.001104874707 | F45: -5 | G45: -1
A46: Территориальный фонд обязательного медицинского страхования | B46: 7515.9 | C46: 1 | D46: 6325.9 | E46: 1 | F46: 1190 | G46: 0.1881155251
A47: Безвозмездные поступления | B47: 7445.1 | C47: =B47/B46 -> 0.9905799705 | D47: 6288.2 | E47: =D47/D46 -> 0.9940403737 | F47: 1156.9 | G47: 0.1839795172
A48: Прочие поступления | B48: 70.8 | C48: =B48/B46 -> 0.009420029537 | D48: 37.7 | E48: =E46-E47 -> 0.005959626298 | F48: 33.1 | G48: 0.8779840849
A49: Иные получатели* | B49: 0 | C49: 1 | D49: -13.9 | E49: 1 | F49: 13.9 | G49: -1
A50: * На 01.07.2021 отражена сумма денежных средств, поступивших от уполномоченного органа ФК, необходимых для осуществления возврата акцизов
A54: Заместитель начальника отдела доходов | F54: Е.А. Бынзер
